bitfinex-derivatives/quotes_SOLF0:USTF0_20250105
["timestamp","ask_amount","ask_price","bid_price","bid_amount"]
[1736051656499,7.07142214,218.66,218.61,2.2877]
[1736051660304,9.35862214,218.66,218.61,2.2877]
[1736051664504,7.07142214,218.64,218.61,2.2877]
[1736051664708,9.35882214,218.64,218.59,2.2878]
[1736051665102,9.35882214,218.64,218.57,1.3982]
[1736051665895,2.2875,218.63,218.57,3.6862]
[1736051666607,7.07142214,218.62,218.57,3.6862]
[1736051667306,7.07142214,218.62,218.58,2.288]
[1736051669705,9.35902214,218.62,218.56,2.2881]
[1736051669901,7.07142214,218.6,218.52,1.4179]
[1736051670102,7.07142214,218.6,218.53,7.07142214]
[1736051670301,9.35922214,218.6,218.55,2.2883]
[1736051670498,7.07142214,218.6,218.55,2.2883]
[1736051670700,9.35922214,218.6,218.55,2.2883]
[1736051673108,7.07142214,218.6,218.55,2.2883]
[1736051673607,2.8225,218.66,218.55,7.07142214]
[1736051673802,7.07142214,218.64,218.59,2.2878]
[1736051675908,7.07142214,218.62,218.59,2.2878]
[1736051676709,7.07142214,218.62,218.55,7.07142214]
[1736051676908,7.07142214,218.6,218.57,2.288]
[1736051680522,7.07142214,218.6,218.54,7.07142214]
[1736051681425,7.07142214,218.6,218.56,2.2882]
[1736051683722,7.07142214,218.6,218.54,7.07142214]
[1736051683930,7.07142214,218.6,218.55,2.2883]
[1736051685929,2.8225,218.66,218.54,7.07142214]
[1736051686120,7.07142214,218.65,218.61,2.2877]
[1736051686828,7.07142214,218.65,218.6,2.2878]
[1736051687228,5.1097,218.66,218.6,2.2878]
[1736051687229,7.07142214,218.63,218.6,2.2878]
[1736051689925,7.07142214,218.69,218.65,2.2873]
[1736051691429,7.07142214,218.67,218.64,2.2874]
[1736051697629,5.7176167,218.74,218.68,2.2869]
[1736051697828,7.07142214,218.73,218.66,7.07142214]
[1736051700536,7.07142214,218.73,218.68,2.2869]
[1736051701133,7.07142214,218.73,218.66,7.07142214]
[1736051701433,7.07142214,218.73,218.69,2.2868]
[1736051702031,7.07142214,218.71,218.69,2.2868]
[1736051702237,7.07142214,218.71,218.7,2.2868]
[1736051703731,7.07142214,218.71,218.67,2.2871]
[1736051704137,7.07142214,218.69,218.64,2.6]
[1736051704743,7.07142214,218.69,218.59,2.7768]
[1736051704940,7.07142214,218.69,218.62,7.07142214]
[1736051705540,7.07142214,218.69,218.66,2.2872]
[1736051710536,9.80751668,218.8,218.68,7.07142214]
[1736051710737,7.07142214,218.78,218.73,2.2864]
[1736051711544,2.2857,218.8,218.74,2.2863]
[1736051711744,7.07142214,218.78,218.74,2.2863]
[1736051711942,7.07142214,218.78,218.71,7.07142214]
[1736051712451,2.2856,218.81,218.71,7.07142214]
[1736051712654,7.07142214,218.79,218.71,7.07142214]
[1736051714352,7.07142214,218.79,218.74,2.2863]
[1736051717344,7.07142214,218.79,218.73,7.07142214]
[1736051717543,7.07142214,218.81,218.74,2.6]
[1736051717853,7.07142214,218.82,218.75,7.07142214]
[1736051718454,7.07142214,218.82,218.77,2.286]
[1736051718655,7.07142214,218.82,218.75,7.07142214]
[1736051719657,7.07142214,218.82,218.78,2.2859]
[1736051721056,7.07142214,218.81,218.78,2.2859]
[1736051726663,7.07142214,218.79,218.76,2.2861]
[1736051726860,7.07142214,218.77,218.72,2.6]
[1736051727561,7.07142214,218.77,218.74,2.2863]
[1736051730362,7.07142214,218.77,218.73,4.8864]
[1736051730562,7.07142214,218.77,218.73,2.6]
[1736051731864,7.07142214,218.77,218.72,4.8865]
[1736051732661,7.07142214,218.77,218.72,2.2865]
[1736051732865,2.2861,218.76,218.7,2.2867]
[1736051733768,1.4242,218.81,218.68,4.0497]
[1736051733769,7.07142214,218.75,218.68,4.0497]
[1736051733965,9.35762214,218.75,218.69,2.2869]
[1736051734162,7.07142214,218.75,218.68,1.4497]
[1736051734461,7.07142214,218.75,218.67,9.67142214]
[1736051735363,7.07142214,218.75,218.69,2.2869]
[1736051735969,7.07142214,218.73,218.69,2.2869]
[1736051737369,2.2861,218.77,218.69,2.2869]
[1736051737564,7.07142214,218.73,218.69,2.2869]
[1736051738468,7.07142214,218.75,218.71,2.2866]
[1736051739070,1.3802,218.8,218.69,7.07142214]
[1736051739271,7.07142214,218.76,218.72,2.2865]
[1736051740265,7.07142214,218.76,218.7,2.2867]
[1736051740866,2.286,218.77,218.7,2.2867]
[1736051741070,7.07142214,218.75,218.7,2.2867]
[1736051742176,2.286,218.77,218.7,2.2867]
[1736051742374,7.07142214,218.75,218.7,2.2867]
[1736051743766,2.2862,218.76,218.7,2.2867]
[1736051743965,9.35762214,218.76,218.7,2.2867]
[1736051745777,9.35762214,218.76,218.71,2.2866]
[1736051745974,7.07142214,218.76,218.69,7.07142214]
[1736051746174,2.2862,218.75,218.69,7.07142214]
[1736051746875,2.2862,218.75,218.7,2.2867]
[1736051747977,2.2871,218.67,218.61,27.57894286]
[1736051748276,7.07142214,218.66,218.61,27.57894286]
[1736051748475,7.07142214,218.66,218.61,25.29124286]
[1736051748676,9.35862214,218.66,218.61,25.29124286]
[1736051748872,9.35862214,218.66,218.59,2.6]
[1736051749781,7.07142214,218.66,218.59,2.6]
[1736051749983,7.07142214,218.66,218.6,2.2878]
[1736051750382,7.07142214,218.66,218.61,2.2877]
[1736051751284,9.35852214,218.68,218.61,2.2877]
[1736051755489,2.2869,218.7,218.64,2.2874]
[1736051755781,2.2869,218.7,218.64,9.35882214]
[1736051755981,7.07142214,218.71,218.66,2.2872]
[1736051756186,8.54222214,218.73,218.66,7.07142214]
[1736051756587,8.54222214,218.73,218.67,2.287]
[1736051757496,1.4708,218.73,218.67,2.287]
[1736051757689,8.54222214,218.73,218.67,2.287]
[1736051759991,10.82872214,218.73,218.67,2.287]
[1736051760692,7.07142214,218.71,218.66,7.07142214]
[1736051760990,7.07142214,218.71,218.64,9.67142214]
[1736051761183,7.07142214,218.69,218.62,7.07142214]
[1736051761383,7.07142214,218.69,218.63,2.6]
[1736051762390,7.07142214,218.69,218.63,4.8875]
[1736051762589,7.07142214,218.69,218.63,2.2875]
[1736051763190,9.35832214,218.69,218.63,2.2875]
[1736051763892,7.07142214,218.69,218.57,1.4213]
[1736051764091,7.07142214,218.67,218.62,2.2876]
[1736051764587,7.07142214,218.67,218.61,7.07142214]
[1736051764785,7.07142214,218.67,218.63,2.2875]
[1736051766491,7.07142214,218.67,218.62,2.2875]
[1736051766692,7.07142214,218.67,218.61,7.07142214]
[1736051767594,7.07142214,218.67,218.63,2.2874]
[1736051769391,7.07142214,218.67,218.61,7.07142214]
[1736051769584,9.35852214,218.67,218.61,9.35902214]
[1736051770190,7.07142214,218.67,218.62,2.2876]
[1736051770692,7.07142214,218.67,218.57,1.4213]
[1736051770890,7.07142214,218.65,218.58,9.67142214]
[1736051771093,7.07142214,218.65,218.61,2.2877]
[1736051774098,1.4971,218.71,218.59,7.07142214]
[1736051774298,7.07142214,218.67,218.62,2.2876]
[1736051776098,2.2869,218.7,218.64,2.2873]
[1736051776303,1.4708,218.73,218.65,7.07142214]
[1736051776495,1.4708,218.73,218.67,7.07142214]
[1736051776693,8.54222214,218.73,218.67,7.07142214]
[1736051776896,7.07142214,218.75,218.67,7.07142214]
[1736051777196,7.07142214,218.73,218.65,7.07142214]
[1736051778500,7.07142214,218.73,218.67,2.287]
[1736051779499,9.35792214,218.73,218.67,2.287]
[1736051782301,7.07142214,218.73,218.67,2.287]
[1736051784798,7.07142214,218.73,218.65,7.07142214]
[1736051784996,7.07142214,218.73,218.68,2.287]
[1736051788195,7.07142214,218.73,218.65,7.07142214]
[1736051788502,7.07142214,218.73,218.69,2.2868]
[1736051791105,2.2863,218.75,218.69,2.2868]
[1736051791106,7.07142214,218.71,218.69,2.2868]
[1736051795315,7.07142214,218.71,218.67,2.287]
[1736051795512,7.07142214,218.69,218.59,13.39423285]
[1736051795810,7.07142214,218.66,218.59,13.39423285]
[1736051796518,7.07142214,218.66,218.61,2.2877]
[1736051796714,7.07142214,218.66,218.59,7.07142214]
[1736051797414,7.07142214,218.66,218.62,2.2875]
[1736051799819,7.07142214,218.68,218.64,2.2874]
[1736051800911,2.2867,218.72,218.65,2.2872]
[1736051801116,1.4054,218.75,218.65,2.2872]
[1736051801117,4.0054,218.75,218.65,7.07142214]
[1736051801317,7.07142214,218.69,218.63,9.67142214]
[1736051801822,7.07142214,218.69,218.63,2.6]
[1736051802520,7.07142214,218.69,218.64,2.2874]
[1736051807019,7.07142214,218.69,218.63,9.67142214]
[1736051807221,7.07142214,218.69,218.65,2.2873]
[1736051807622,7.07142214,218.69,218.63,9.67142214]
[1736051807824,7.07142214,218.71,218.65,7.07142214]
[1736051808628,7.07142214,218.71,218.68,2.287]
[1736051809328,1.4054,218.75,218.65,7.07142214]
[1736051809529,7.07142214,218.73,218.7,2.2868]
[1736051810424,7.07142214,218.75,218.69,7.07142214]
[1736051810917,7.07142214,218.75,218.68,2.6]
[1736051811124,9.35762214,218.75,218.7,2.2867]
[1736051811726,9.35762214,218.75,218.68,4.8869]
[1736051811925,9.35762214,218.75,218.68,2.6]
[1736051812126,7.07142214,218.73,218.68,2.6]
[1736051812727,7.07142214,218.73,218.67,7.07142214]
[1736051813626,7.07142214,218.73,218.69,2.2869]
[1736051815131,2.2861,218.77,218.7,2.2868]
[1736051815433,7.07142214,218.75,218.7,2.2868]
[1736051815732,2.2861,218.76,218.71,2.2866]
[1736051815923,9.35752214,218.76,218.71,2.2866]
[1736051816123,7.07142214,218.76,218.71,2.2866]
[1736051816934,9.35752214,218.76,218.71,2.2866]
[1736051818231,7.07142214,218.74,218.67,7.07142214]
[1736051818432,7.07142214,218.74,218.69,2.2868]
[1736051821129,7.07142214,218.74,218.67,7.07142214]
[1736051821435,7.07142214,218.74,218.7,2.2868]
[1736051823036,9.35772214,218.74,218.68,2.2869]
[1736051824936,7.07142214,218.72,218.66,2.2871]
[1736051826438,9.35802214,218.72,218.66,2.2871]
[1736051831145,9.35842214,218.68,218.61,9.65142214]
[1736051831838,9.35822214,218.7,218.63,9.35892214]
[1736051832040,9.35822214,218.7,218.63,7.07142214]
[1736051833542,9.35822214,218.7,218.64,2.2874]
[1736051834444,2.2868,218.7,218.64,2.2874]
[1736051834742,9.35822214,218.7,218.64,2.2874]
[1736051835543,2.2868,218.7,218.64,2.2874]
[1736051835744,9.35822214,218.7,218.64,2.2874]
[1736051837342,9.35842214,218.68,218.62,4.8675]
[1736051837538,7.07142214,218.66,218.59,7.07142214]
[1736051838437,2.2874,218.65,218.59,7.07142214]
[1736051839442,2.2874,218.65,218.59,9.35932214]
[1736051842644,2.2874,218.65,218.59,7.07142214]
[1736051842949,7.07142214,218.62,218.56,1.4801]
[1736051844540,7.07142214,218.62,218.57,2.288]
[1736051847250,9.35912214,218.62,218.55,9.35972214]
[1736051847448,7.07142214,218.6,218.55,2.2883]
[1736051850552,2.2878,218.61,218.55,9.35972214]
[1736051850752,7.07142214,218.62,218.55,7.07142214]
[1736051850953,2.2875,218.63,218.57,9.35952214]
[1736051852647,7.07142214,218.62,218.55,7.07142214]
[1736051852853,7.07142214,218.58,218.51,8.46132214]
[1736051854557,7.07142214,218.58,218.52,2.2886]
[1736051855756,7.07142214,218.58,218.53,2.2885]
[1736051862562,7.07142214,218.58,218.53,9.35992214]
[1736051864762,2.288,218.59,218.54,2.2884]
[1736051864962,7.07142214,218.62,218.55,7.07142214]
[1736051866373,7.07142214,218.62,218.56,2.2881]
[1736051867180,9.35902214,218.62,218.56,2.2881]
[1736051867370,9.35902214,218.62,218.57,2.2881]
[1736051869675,2.2873,218.65,218.59,2.2878]
[1736051869876,7.07142214,218.64,218.57,7.07142214]
[1736051871180,9.35882214,218.64,218.6,2.2878]
[1736051872672,7.07142214,218.64,218.59,7.07142214]
[1736051872877,4.8672,218.66,218.61,2.2877]
[1736051873080,11.93862214,218.66,218.61,2.2877]
[1736051874784,9.35862214,218.66,218.61,2.2877]
[1736051875380,2.2871,218.68,218.63,2.2875]
[1736051877184,9.35832214,218.69,218.63,2.2875]
[1736051877978,9.35832214,218.69,218.64,2.2874]
[1736051879085,7.07142214,218.69,218.64,2.2874]
[1736051880889,9.35832214,218.69,218.64,2.2874]
[1736051881782,2.2872,218.66,218.61,7.07142214]
[1736051883486,2.2872,218.66,218.61,9.35902214]
[1736051886891,2.2872,218.66,218.61,2.2876]
[1736051888896,2.2874,218.64,218.59,2.2879]
[1736051897200,2.2874,218.64,218.58,7.07142214]
[1736051897903,2.2876,218.62,218.56,2.2881]
[1736051899597,2.2878,218.6,218.55,9.35972214]
[1736051899804,7.07142214,218.57,218.51,8.46132214]
[1736051900802,7.07142214,218.57,218.51,1.3899]
[1736051901403,9.35962214,218.57,218.51,1.3899]
[1736051904005,7.07142214,218.57,218.51,1.3899]
[1736051904206,2.2882,218.56,218.5,2.2888]
[1736051908010,9.35982214,218.55,218.49,2.2889]
[1736051908504,9.35982214,218.55,218.5,2.2888]
[1736051908803,2.58,218.59,218.48,7.07142214]
[1736051909013,7.07142214,218.55,218.48,7.07142214]
[1736051909212,7.07142214,218.55,218.5,2.2888]
[1736051909704,9.35972214,218.55,218.5,2.2888]
[1736051910103,7.07142214,218.53,218.4,25.29124286]
[1736051910301,9.36002214,218.53,218.47,2.2891]
[1736051911210,7.07142214,218.51,218.46,7.07142214]
[1736051911402,9.36012214,218.51,218.46,7.07142214]
[1736051913013,7.07142214,218.51,218.46,7.07142214]
[1736051913312,7.07142214,218.51,218.46,9.36072214]
[1736051914712,7.07142214,218.51,218.46,7.07142214]
[1736051914915,7.07142214,218.53,218.46,7.07142214]
[1736051915911,4.8685,218.54,218.48,2.289]
[1736051916107,7.07142214,218.55,218.48,7.07142214]
[1736051917111,4.8681,218.57,218.5,7.07142214]
[1736051917318,9.35952214,218.57,218.5,7.07142214]
[1736051918416,7.07142214,218.57,218.53,2.2885]
[1736051920414,2.58,218.58,218.54,2.2884]
[1736051921715,7.07142214,218.57,218.54,2.2884]
[1736051922617,7.07142214,218.57,218.5,7.07142214]
[1736051923411,7.07142214,218.57,218.53,2.2885]
[1736051925516,7.07142214,218.57,218.52,2.2886]
[1736051925817,7.07142214,218.55,218.52,2.2886]
[1736051927211,7.07142214,218.57,218.52,2.2886]
[1736051931422,7.07142214,218.57,218.5,7.07142214]
[1736051931620,3.9832,218.61,218.52,7.07142214]
[1736051931819,7.07142214,218.6,218.52,7.07142214]
[1736051932521,7.07142214,218.6,218.56,2.2882]
[1736051933021,7.07142214,218.6,218.52,7.07142214]
[1736051933218,29.02239972,218.66,218.57,2.2881]
[1736051933219,9.65142214,218.62,218.57,2.2881]
[1736051934119,2.58,218.62,218.54,7.07142214]
[1736051934319,9.65142214,218.62,218.54,7.07142214]
[1736051934922,9.65142214,218.62,218.56,2.2882]
[1736051935122,9.65142214,218.62,218.54,7.07142214]
[1736051935423,7.07142214,218.62,218.54,7.07142214]
[1736051936124,7.07142214,218.62,218.58,2.288]
[1736051936423,7.07142214,218.62,218.54,7.07142214]
[1736051937018,7.07142214,218.62,218.57,2.2881]
[1736051937922,9.35902214,218.62,218.57,2.2881]
[1736051938119,7.07142214,218.6,218.48,28.04484286]
[1736051938320,7.07142214,218.53,218.48,26.68774286]
[1736051938513,7.07142214,218.53,218.48,25.29124286]
[1736051939419,7.07142214,218.53,218.47,2.2892]
[1736051939420,9.35992214,218.53,218.47,2.2892]
[1736051940123,2.2887,218.52,218.46,7.07142214]
[1736051941227,2.58,218.55,218.43,3.734]
[1736051941228,9.36022214,218.51,218.43,3.734]
[1736051941525,9.36022214,218.51,218.43,8.51592214]
[1736051941721,7.07142214,218.51,218.45,7.07142214]
[1736051941926,2.2886,218.53,218.45,7.07142214]
[1736051942126,9.36002214,218.53,218.45,7.07142214]
[1736051943524,11.93982214,218.55,218.47,7.07142214]
[1736051943723,4.8684,218.55,218.47,7.07142214]
[1736051944026,11.93982214,218.55,218.47,7.07142214]
[1736051944421,11.93982214,218.55,218.49,2.2889]
[1736051945128,9.35982214,218.55,218.49,2.2889]
[1736051945319,7.07142214,218.55,218.49,7.07142214]
[1736051945525,7.07142214,218.57,218.51,9.36012214]
[1736051945726,7.07142214,218.57,218.51,7.07142214]
[1736051946425,7.07142214,218.57,218.53,2.2885]
[1736051947227,7.07142214,218.57,218.49,7.07142214]
[1736051947422,7.07142214,218.55,218.48,2.58]
[1736051947629,9.35972214,218.55,218.48,2.58]
[1736051949131,9.35972214,218.55,218.47,7.07142214]
[1736051949430,9.35972214,218.55,218.49,2.2889]
[1736051950835,7.07142214,218.55,218.47,7.07142214]
[1736051951135,2.2884,218.54,218.48,2.2891]
[1736051952534,7.07142214,218.55,218.49,2.2889]
[1736051953940,2.2884,218.54,218.49,2.2889]
[1736051954741,7.07142214,218.55,218.47,7.07142214]
[1736051954941,7.07142214,218.53,218.46,2.2893]
[1736051955134,7.07142214,218.53,218.46,9.36072214]
[1736051955636,2.2888,218.51,218.46,7.07142214]
[1736051956235,2.2888,218.51,218.45,2.2893]
[1736051956438,9.36022214,218.51,218.45,2.2893]
[1736051957940,9.36022214,218.51,218.44,9.36082214]
[1736051958941,9.36022214,218.51,218.45,2.2894]
[1736051959143,7.07142214,218.51,218.46,7.07142214]
[1736051960437,7.07142214,218.51,218.47,2.2891]
[1736051961938,9.36002214,218.53,218.47,2.2891]
[1736051962543,2.2886,218.53,218.47,2.2891]
[1736051962749,9.36002214,218.53,218.47,2.2891]
[1736051963039,9.36002214,218.53,218.46,7.07142214]
[1736051963344,7.07142214,218.53,218.48,2.2891]
[1736051965939,2.2882,218.57,218.51,2.2887]
[1736051966137,7.07142214,218.57,218.5,7.07142214]
[1736051966444,7.07142214,218.55,218.48,7.07142214]
[1736051966638,7.07142214,218.55,218.47,2.58]
[1736051967546,9.35972214,218.55,218.5,2.2888]
[1736051968638,9.36002214,218.53,218.48,2.289]
[1736051971545,7.07142214,218.51,218.47,2.2892]
[1736051976946,7.07142214,218.52,218.47,2.2892]
[1736051977147,7.07142214,218.54,218.5,2.2888]
[1736051977451,7.07142214,218.54,218.47,7.07142214]
[1736051977843,2.2883,218.56,218.47,7.07142214]
[1736051978043,7.07142214,218.56,218.51,2.2887]
[1736051978248,7.07142214,218.56,218.49,7.07142214]
[1736051979554,7.07142214,218.56,218.52,2.2886]
[1736051981556,7.07142214,218.56,218.5,2.2887]
[1736051981949,2.58,218.59,218.5,2.2887]
[1736051982155,9.35962214,218.56,218.49,7.07142214]
[1736051982454,2.58,218.63,218.51,7.07142214]
[1736051982651,2.2879,218.6,218.51,7.07142214]
[1736051982853,7.07142214,218.59,218.51,7.07142214]
[1736051983051,7.07142214,218.59,218.48,1.4476]
[1736051983255,7.07142214,218.57,218.53,2.2885]
[1736051983458,7.07142214,218.57,218.5,7.07142214]
[1736051984452,2.2882,218.56,218.5,9.36022214]
[1736051984656,2.2882,218.56,218.5,2.2888]
[1736051985356,7.07142214,218.55,218.5,2.2888]
[1736051986760,9.35972214,218.55,218.5,2.2888]
[1736051990058,7.07142214,218.55,218.5,2.2888]
[1736051991264,7.07142214,218.57,218.52,2.2886]
[1736051991564,7.07142214,218.57,218.49,7.07142214]
[1736051991859,9.35952214,218.57,218.5,2.2888]
[1736051992054,9.35952214,218.57,218.49,7.07142214]
[1736051992657,9.35952214,218.57,218.51,2.2887]
[1736051992862,7.07142214,218.55,218.51,2.2887]
[1736051993863,2.58,218.59,218.51,2.2887]
[1736051994063,7.07142214,218.55,218.51,2.2887]
[1736051995662,3.43305249,218.63,218.48,8.51902214]
[1736051995863,7.07142214,218.58,218.48,1.4476]
[1736051996058,7.07142214,218.58,218.5,7.07142214]
[1736051997465,7.07142214,218.58,218.53,2.2885]
[1736052004776,7.07142214,218.58,218.52,2.2886]
[1736052004967,7.07142214,218.58,218.5,7.07142214]
[1736052005575,7.07142214,218.6,218.52,7.07142214]
[1736052007071,4.377,218.65,218.5,1.3635]
[1736052007072,2.2874,218.64,218.54,7.07142214]
[1736052007266,7.07142214,218.62,218.54,7.07142214]
[1736052007875,7.07142214,218.6,218.54,7.07142214]
[1736052008375,5.5348,218.65,218.54,7.07142214]
[1736052008572,7.07142214,218.61,218.54,7.07142214]
[1736052008773,7.07142214,218.61,218.54,9.65142214]
[1736052008972,7.07142214,218.61,218.57,2.2881]
[1736052010271,5.2422,218.65,218.54,9.65142214]
[1736052010472,7.07142214,218.62,218.54,9.65142214]
[1736052010871,7.07142214,218.62,218.58,2.288]
[1736052016379,7.07142214,218.62,218.59,2.2878]
[1736052022083,7.07142214,218.62,218.58,2.288]
[1736052022482,7.07142214,218.6,218.58,2.288]
[1736052022981,7.07142214,218.6,218.57,2.2881]
[1736052026986,7.07142214,218.58,218.55,2.2882]
[1736052027186,7.07142214,218.58,218.5,1.3635]
[1736052027381,7.07142214,218.58,218.51,2.58]
[1736052028486,9.35942214,218.58,218.53,2.2885]
[1736052029282,7.07142214,218.58,218.52,7.07142214]
[1736052029483,7.07142214,218.6,218.54,7.07142214]
[1736052029891,7.07142214,218.6,218.56,2.2882]
[1736052034191,7.07142214,218.6,218.52,7.07142214]
[1736052034392,7.07142214,218.58,218.54,2.2883]
[1736052034692,2.2878,218.6,218.54,2.2883]
[1736052034890,7.07142214,218.58,218.54,2.2883]
[1736052035286,7.07142214,218.58,218.53,2.2885]
[1736052036493,9.35942214,218.58,218.53,2.2885]
[1736052036790,7.07142214,218.56,218.5,3.6523]
[1736052036993,7.07142214,218.54,218.5,2.2888]
[1736052038799,7.07142214,218.54,218.48,8.51902214]
[1736052038992,7.07142214,218.54,218.51,2.2887]
[1736052040690,7.07142214,218.56,218.51,2.2887]
[1736052043000,2.2882,218.57,218.51,2.2887]
[1736052043299,9.35962214,218.57,218.51,2.2887]
[1736052052611,2.58,218.61,218.57,8.55037786]
[1736052052807,7.07142214,218.58,218.57,8.55037786]
[1736052054111,9.35942214,218.58,218.57,8.55037786]
[1736052061521,2.2885,218.54,218.49,2.289]
[1736052061823,7.07142214,218.53,218.45,8.49512214]
[1736052062420,7.07142214,218.51,218.45,8.49512214]
[1736052063126,9.36022214,218.51,218.46,2.2892]
[1736052065420,7.07142214,218.51,218.46,2.2892]
[1736052066519,7.07142214,218.51,218.45,7.07142214]
[1736052066721,9.36022214,218.51,218.45,7.07142214]
[1736052067527,9.36022214,218.51,218.45,9.36082214]
[1736052068528,9.36022214,218.51,218.45,2.2894]
[1736052069330,2.2884,218.55,218.48,9.36042214]
[1736052069523,8.44072214,218.57,218.51,7.07142214]
[1736052069727,8.44072214,218.57,218.49,7.07142214]
[1736052070233,2.2884,218.54,218.49,9.36032214]
[1736052071132,7.07142214,218.55,218.46,2.58]
[1736052071331,2.2886,218.53,218.48,7.07142214]
[1736052071534,2.2886,218.53,218.46,2.58]
[1736052071734,2.2886,218.53,218.48,7.07142214]
[1736052072437,2.2886,218.53,218.48,9.36042214]
[1736052073130,9.35982214,218.55,218.48,9.36042214]
[1736052073433,9.35982214,218.55,218.49,2.289]
[1736052074734,9.35982214,218.55,218.48,7.07142214]
[1736052074933,9.35982214,218.55,218.5,2.2889]
[1736052075429,9.35982214,218.55,218.51,2.2887]
[1736052077139,7.07142214,218.55,218.51,2.2887]
[1736052077336,3.6575,218.57,218.51,2.2887]
[1736052077636,7.07142214,218.56,218.51,2.2887]
[1736052078436,9.35962214,218.56,218.51,2.2887]
[1736052086644,2.2882,218.56,218.51,2.2887]
[1736052086840,7.07142214,218.55,218.51,2.2887]
[1736052088448,9.35972214,218.55,218.51,2.2887]
[1736052089145,9.35972214,218.55,218.49,2.2889]
[1736052089345,2.2884,218.54,218.49,2.2889]
[1736052090139,9.36002214,218.53,218.48,2.58]
[1736052091542,9.36002214,218.53,218.48,4.869]
[1736052093049,7.07142214,218.55,218.51,2.2887]
[1736052096552,9.35972214,218.55,218.49,2.2889]
[1736052099649,7.07142214,218.53,218.48,2.2891]
[1736052101152,7.07142214,218.53,218.49,2.289]
[1736052104858,2.2884,218.54,218.49,2.289]
[1736052105252,7.07142214,218.55,218.46,7.07142214]
[1736052105453,7.07142214,218.55,218.5,2.2887]
[1736052106456,9.35982214,218.55,218.5,2.2887]
[1736052106658,7.07142214,218.55,218.48,2.289]
[1736052107456,2.2884,218.54,218.49,2.2889]
[1736052108254,3.43330359,218.62,218.48,7.07142214]
[1736052108552,7.07142214,218.56,218.51,2.2887]
[1736052109550,9.35962214,218.56,218.51,2.2887]
[1736052111559,7.07142214,218.56,218.53,2.2885]
[1736052111753,9.35952214,218.58,218.53,2.2885]
[1736052112358,2.2879,218.6,218.54,2.2884]
[1736052112559,2.58,218.61,218.54,2.2884]
[1736052112560,7.07142214,218.58,218.54,2.2884]
[1736052117062,9.35942214,218.58,218.54,2.2884]
[1736052121467,7.07142214,218.57,218.53,2.2885]
[1736052121958,2.2879,218.6,218.5,9.65142214]
[1736052122162,7.07142214,218.58,218.54,2.2884]
[1736052122566,9.35942214,218.58,218.54,2.2884]
[1736052123266,9.35942214,218.58,218.52,2.2885]
[1736052124167,9.35942214,218.58,218.5,9.65142214]
[1736052124361,9.35942214,218.58,218.53,2.2885]
[1736052128967,7.07142214,218.56,218.51,2.2886]
[1736052130461,7.07142214,218.54,218.49,2.2889]
[1736052131472,9.35992214,218.54,218.49,2.2889]
[1736052137274,9.35992214,218.54,218.48,9.36052214]
[1736052141277,7.07142214,218.52,218.43,1.3948]
[1736052141582,7.07142214,218.52,218.47,2.2892]
[1736052144485,9.36012214,218.52,218.45,9.36072214]
[1736052144882,7.07142214,218.52,218.45,9.36072214]
[1736052145082,2.2887,218.51,218.45,9.36072214]
[1736052146582,2.2887,218.51,218.45,7.07142214]
[1736052146790,2.2887,218.51,218.46,2.2893]
[1736052151992,7.07142214,218.52,218.45,7.07142214]
[1736052152189,7.07142214,218.48,218.44,2.2895]
[1736052152592,7.07142214,218.48,218.4,25.28187161]
[1736052152895,7.07142214,218.44,218.4,25.28187161]
[1736052153397,7.07142214,218.44,218.38,6.3204679]
[1736052154194,7.07142214,218.44,218.37,7.07142214]
[1736052154395,7.07142214,218.44,218.39,2.29]
[1736052155092,9.36092214,218.44,218.37,9.36152214]
[1736052155598,7.07142214,218.42,218.37,9.36152214]
[1736052156400,7.07142214,218.42,218.37,7.07142214]
[1736052156595,7.07142214,218.42,218.38,2.2901]
[1736052157598,2.2895,218.44,218.38,2.2901]
[1736052157798,7.07142214,218.43,218.4,2.2898]
[1736052158003,26.49911104,218.51,218.41,7.07142214]
[1736052158300,7.07142214,218.48,218.41,7.07142214]
[1736052159297,7.07142214,218.46,218.37,1.4086]
[1736052159496,7.07142214,218.44,218.38,7.07142214]
[1736052160401,7.07142214,218.44,218.39,2.29]
[1736052162099,9.36092214,218.44,218.38,7.07142214]
[1736052162401,7.07142214,218.42,218.36,8.52432214]
[1736052162799,7.07142214,218.43,218.36,8.52432214]
[1736052163404,7.07142214,218.43,218.38,2.2901]
[1736052164501,7.07142214,218.45,218.39,2.29]